[Event "Titled Tuesday Blitz November 08 Late 2022"]
[White "Wieczorek, Oskar"]
[Black "Hajiyev, Kanan"]
[WhiteFideId "1133950"]
[BlackFideId "13404148"]
[WhiteElo "2404"]
[BlackElo "2118"]
[Result "1-0"]
[Round "05"]
[TimeControl "180+1"]
[Date "2022.11.09"]
[WhiteClock "0:00:15"]
[BlackClock "0:00:02"]

1. e4 {[%clk 0:03:00]}  c6 {[%clk 0:02:57]} 2. d4 {[%clk 0:02:44]}  d5 {[%clk 0:02:56]} 3. Nd2 {[%clk 0:02:44]}  a6 {[%clk 0:02:55]} 4. c3 {[%clk 0:02:39]}  dxe4 {[%clk 0:02:52]} 5. Nxe4 {[%clk 0:02:39]}  Bf5 {[%clk 0:02:52]} 6. Ng3 {[%clk 0:02:39]}  Bg6 {[%clk 0:02:53]} 7. Nh3 {[%clk 0:02:35]}  e6 {[%clk 0:02:51]} 8. Nf4 {[%clk 0:02:34]}  Bd6 {[%clk 0:02:52]} 9. h4 {[%clk 0:02:33]}  Qc7 {[%clk 0:02:47]} 10. Qf3 {[%clk 0:02:33]}  Bxf4 {[%clk 0:02:20]} 11. Bxf4 {[%clk 0:02:29]}  Qb6 {[%clk 0:02:21]} 12. O-O-O {[%clk 0:02:25]}  Ne7 {[%clk 0:02:05]} 13. h5 {[%clk 0:02:21]}  Bf5 {[%clk 0:02:04]} 14. h6 {[%clk 0:02:16]}  g6 {[%clk 0:01:56]} 15. Ne4 {[%clk 0:02:10]}  Bxe4 {[%clk 0:01:55]} 16. Qxe4 {[%clk 0:02:10]}  Nd7 {[%clk 0:01:44]} 17. g4 {[%clk 0:01:42]}  Qa5 {[%clk 0:01:44]} 18. Bc4 {[%clk 0:01:37]}  O-O-O {[%clk 0:01:31]} 19. Bb3 {[%clk 0:01:25]}  Nd5 {[%clk 0:01:27]} 20. Bg3 {[%clk 0:01:21]}  Rhe8 {[%clk 0:01:24]} 21. c4 {[%clk 0:01:19]}  N5f6 {[%clk 0:00:57]} 22. Qf4 {[%clk 0:01:02]}  g5 {[%clk 0:00:56]} 23. Qf3 {[%clk 0:00:57]}  Rg8 {[%clk 0:00:41]} 24. Kb1 {[%clk 0:00:55]}  Rg6 {[%clk 0:00:38]} 25. Bc2 {[%clk 0:00:54]}  Rgg8 {[%clk 0:00:36]} 26. c5 {[%clk 0:00:51]}  Rdf8 {[%clk 0:00:31]} 27. Rd3 {[%clk 0:00:48]}  Nd5 {[%clk 0:00:30]} 28. Ra3 {[%clk 0:00:48]}  Qb4 {[%clk 0:00:28]} 29. Rd1 {[%clk 0:00:31]}  f5 {[%clk 0:00:28]} 30. gxf5 {[%clk 0:00:31]}  exf5 {[%clk 0:00:28]} 31. Rb3 {[%clk 0:00:30]}  Qc4 {[%clk 0:00:25]} 32. Bxf5 {[%clk 0:00:28]}  Kd8 {[%clk 0:00:14]} 33. Rxb7 {[%clk 0:00:22]}  Rf7 {[%clk 0:00:04]} 34. Qd3 {[%clk 0:00:18]}  Qxd3+ {[%clk 0:00:03]} 35. Bxd3 {[%clk 0:00:19]}  Re8 {[%clk 0:00:02]} 36. Bxa6 {[%clk 0:00:17]}  Ne5 {[%clk 0:00:01]} 37. Bxe5 {[%clk 0:00:16]}  Rxb7 {[%clk 0:00:01]} 38. Bxb7 {[%clk 0:00:16]}  Re7 {[%clk 0:00:01]} 39. Bxc6 {[%clk 0:00:17]}  Nb4 {[%clk 0:00:02]} 40. Bf6 {[%clk 0:00:16]}  Nxc6 {[%clk 0:00:02]} 41. Bxe7+ {[%clk 0:00:16]}  Nxe7 {[%clk 0:00:02]} 42. d5 {[%clk 0:00:16]}  Nf5 {[%clk 0:00:03]} 43. d6 {[%clk 0:00:16]}  Kd7 {[%clk 0:00:04]} 44. b4 {[%clk 0:00:15]}  Kc6 {[%clk 0:00:04]} 45. d7 {[%clk 0:00:15]}  Nxh6 {[%clk 0:00:02]} 46. d8=Q {[%clk 0:00:15]} 1-0


[Site "https://www.chess.com"]

[Event "Titled Tuesday Blitz November 08 Late 2022"]
[White "Winterberg, Lukas"]
[Black "Zeynalli, Rashad"]
[WhiteFideId "24622702"]
[BlackFideId "13403320"]
[WhiteElo "2349"]
[BlackElo "2125"]
[Result "1-0"]
[Round "05"]
[TimeControl "180+1"]
[Date "2022.11.09"]
[WhiteClock "0:00:14"]
[BlackClock "0:00:14"]

1. d4 {[%clk 0:02:45]}  f5 {[%clk 0:02:58]} 2. Nf3 {[%clk 0:02:44]}  Nf6 {[%clk 0:02:57]} 3. g3 {[%clk 0:02:44]}  g6 {[%clk 0:02:56]} 4. Bg2 {[%clk 0:02:44]}  Bg7 {[%clk 0:02:56]} 5. O-O {[%clk 0:02:45]}  O-O {[%clk 0:02:56]} 6. Nbd2 {[%clk 0:02:46]}  d6 {[%clk 0:02:55]} 7. Re1 {[%clk 0:02:46]}  Nc6 {[%clk 0:02:43]} 8. e4 {[%clk 0:02:45]}  fxe4 {[%clk 0:02:41]} 9. Nxe4 {[%clk 0:02:46]}  Nxe4 {[%clk 0:02:40]} 10. Rxe4 {[%clk 0:02:47]}  e5 {[%clk 0:02:39]} 11. c3 {[%clk 0:02:38]}  Bf5 {[%clk 0:02:36]} 12. Qb3+ {[%clk 0:02:37]}  Kh8 {[%clk 0:02:34]} 13. Rh4 {[%clk 0:02:36]}  Bf6 {[%clk 0:02:23]} 14. Qxb7 {[%clk 0:02:10]}  Ne7 {[%clk 0:01:35]} 15. Bg5 {[%clk 0:02:00]}  Rb8 {[%clk 0:01:29]} 16. Qxa7 {[%clk 0:01:31]}  Nc6 {[%clk 0:01:23]} 17. Qa4 {[%clk 0:01:24]}  Bxg5 {[%clk 0:01:18]} 18. Nxg5 {[%clk 0:01:22]}  Qxg5 {[%clk 0:01:19]} 19. Qxc6 {[%clk 0:01:17]}  Rf7 {[%clk 0:00:56]} 20. dxe5 {[%clk 0:01:13]}  dxe5 {[%clk 0:00:54]} 21. b3 {[%clk 0:01:10]}  Rbf8 {[%clk 0:00:51]} 22. Qc5 {[%clk 0:01:03]}  Qf6 {[%clk 0:00:49]} 23. Re1 {[%clk 0:01:02]}  Re7 {[%clk 0:00:48]} 24. a4 {[%clk 0:00:56]}  Bc2 {[%clk 0:00:47]} 25. a5 {[%clk 0:00:49]}  Bxb3 {[%clk 0:00:46]} 26. Rhe4 {[%clk 0:00:49]}  Rfe8 {[%clk 0:00:39]} 27. f4 {[%clk 0:00:47]}  Qd6 {[%clk 0:00:33]} 28. Qb4 {[%clk 0:00:35]}  Bd5 {[%clk 0:00:27]} 29. Rxe5 {[%clk 0:00:23]}  Rxe5 {[%clk 0:00:24]} 30. Rxe5 {[%clk 0:00:18]}  Rxe5 {[%clk 0:00:19]} 31. Qxd6 {[%clk 0:00:13]}  cxd6 {[%clk 0:00:18]} 32. fxe5 {[%clk 0:00:13]}  Bxg2 {[%clk 0:00:14]} 33. Kxg2 {[%clk 0:00:14]} 1-0


[Site "https://www.chess.com"]

[Event "Titled Tuesday Blitz November 08 Late 2022"]
[White "czernikowskqa"]
[Black "Bernat, David"]
[BlackFideId "2099225"]
[WhiteElo "1985"]
[BlackElo "2335"]
[Result "0-1"]
[Round "05"]
[TimeControl "180+1"]
[Date "2022.11.09"]
[WhiteClock "0:01:25"]
[BlackClock "0:00:14"]

1. c4 {[%clk 0:03:00]}  c5 {[%clk 0:02:59]} 2. Nc3 {[%clk 0:03:00]}  Nc6 {[%clk 0:03:00]} 3. Nf3 {[%clk 0:03:00]}  g6 {[%clk 0:03:01]} 4. d4 {[%clk 0:02:59]}  cxd4 {[%clk 0:03:01]} 5. Nxd4 {[%clk 0:03:00]}  Nf6 {[%clk 0:03:01]} 6. Nc2 {[%clk 0:02:59]}  Bg7 {[%clk 0:03:02]} 7. g3 {[%clk 0:03:00]}  d6 {[%clk 0:03:02]} 8. Bg2 {[%clk 0:03:00]}  O-O {[%clk 0:03:03]} 9. O-O {[%clk 0:03:01]}  Be6 {[%clk 0:03:04]} 10. b3 {[%clk 0:03:01]}  a6 {[%clk 0:03:03]} 11. Bb2 {[%clk 0:03:01]}  Qa5 {[%clk 0:03:01]} 12. Ne3 {[%clk 0:02:58]}  Rac8 {[%clk 0:02:58]} 13. Qc2 {[%clk 0:02:46]}  b5 {[%clk 0:02:46]} 14. Ncd5 {[%clk 0:02:42]}  Bxd5 {[%clk 0:02:43]} 15. Nxd5 {[%clk 0:02:40]}  Nxd5 {[%clk 0:02:31]} 16. Bxd5 {[%clk 0:02:33]}  Bxb2 {[%clk 0:02:19]} 17. Qxb2 {[%clk 0:02:31]}  Nb4 {[%clk 0:01:58]} 18. Rfc1 {[%clk 0:02:04]}  Nxd5 {[%clk 0:01:51]} 19. cxd5 {[%clk 0:02:04]}  b4 {[%clk 0:01:49]} 20. e4 {[%clk 0:02:00]}  Rc3 {[%clk 0:01:27]} 21. a3 {[%clk 0:01:44]}  Rfc8 {[%clk 0:01:18]} 22. axb4 {[%clk 0:01:40]}  Rxc1+ {[%clk 0:00:58]} 23. Rxc1 {[%clk 0:01:41]}  Rxc1+ {[%clk 0:00:58]} 24. Qxc1 {[%clk 0:01:42]}  Qxb4 {[%clk 0:00:58]} 25. Qc8+ {[%clk 0:01:42]}  Kg7 {[%clk 0:00:58]} 26. Qxa6 {[%clk 0:01:42]}  Qe1+ {[%clk 0:00:47]} 27. Qf1 {[%clk 0:01:40]}  Qxe4 {[%clk 0:00:47]} 28. Qc4 {[%clk 0:01:40]}  Qxc4 {[%clk 0:00:29]} 29. bxc4 {[%clk 0:01:41]}  Kf6 {[%clk 0:00:23]} 30. f4 {[%clk 0:01:39]}  Kf5 {[%clk 0:00:20]} 31. Kf2 {[%clk 0:01:29]}  Ke4 {[%clk 0:00:20]} 32. h4 {[%clk 0:01:26]}  h5 {[%clk 0:00:17]} 33. Ke2 {[%clk 0:01:25]}  Kd4 {[%clk 0:00:17]} 34. Kf3 {[%clk 0:01:25]}  f5 {[%clk 0:00:14]} 0-1


[Site "https://www.chess.com"]

[Event "Titled Tuesday Blitz November 08 Late 2022"]
[White "Aghasiyev, Kamal"]
[Black "Mazurkiewicz, Michal"]
[WhiteFideId "13402854"]
[BlackFideId "1124943"]
[WhiteElo "2341"]
[BlackElo "2063"]
[Result "0-1"]
[Round "06"]
[TimeControl "180+1"]
[Date "2022.11.09"]
[WhiteClock "0:00:53"]
[BlackClock "0:00:08"]

1. Nf3 {[%clk 0:03:00]}  Nf6 {[%clk 0:02:59]} 2. c4 {[%clk 0:03:00]}  g6 {[%clk 0:03:00]} 3. b3 {[%clk 0:02:59]}  Bg7 {[%clk 0:03:01]} 4. Bb2 {[%clk 0:03:00]}  O-O {[%clk 0:03:02]} 5. g3 {[%clk 0:03:00]}  d6 {[%clk 0:03:02]} 6. Bg2 {[%clk 0:02:58]}  e5 {[%clk 0:03:02]} 7. d3 {[%clk 0:02:58]}  c6 {[%clk 0:03:00]} 8. O-O {[%clk 0:02:58]}  Re8 {[%clk 0:03:00]} 9. Nbd2 {[%clk 0:02:58]}  Nbd7 {[%clk 0:03:00]} 10. e4 {[%clk 0:02:53]}  Nc5 {[%clk 0:02:56]} 11. Qc2 {[%clk 0:02:53]}  a5 {[%clk 0:02:53]} 12. Rfe1 {[%clk 0:02:51]}  Ne6 {[%clk 0:02:47]} 13. d4 {[%clk 0:02:50]}  exd4 {[%clk 0:02:46]} 14. Nxd4 {[%clk 0:02:50]}  Qb6 {[%clk 0:02:29]} 15. Nxe6 {[%clk 0:02:41]}  Bxe6 {[%clk 0:02:30]} 16. Nf1 {[%clk 0:02:41]}  a4 {[%clk 0:02:23]} 17. Ne3 {[%clk 0:02:30]}  h5 {[%clk 0:02:06]} 18. Qd2 {[%clk 0:02:25]}  axb3 {[%clk 0:02:04]} 19. axb3 {[%clk 0:02:23]}  Rxa1 {[%clk 0:02:04]} 20. Bxa1 {[%clk 0:02:21]}  Qxb3 {[%clk 0:02:04]} 21. Qxd6 {[%clk 0:02:21]}  Qb6 {[%clk 0:01:45]} 22. Nd5 {[%clk 0:02:06]}  Bxd5 {[%clk 0:01:33]} 23. cxd5 {[%clk 0:02:04]}  Nxe4 {[%clk 0:01:17]} 24. Bxe4 {[%clk 0:01:56]}  Rxe4 {[%clk 0:01:10]} 25. Rf1 {[%clk 0:01:35]}  Bxa1 {[%clk 0:00:51]} 26. Rxa1 {[%clk 0:01:34]}  Qd4 {[%clk 0:00:51]} 27. Rf1 {[%clk 0:01:24]}  Qxd5 {[%clk 0:00:49]} 28. Qb8+ {[%clk 0:01:24]}  Kg7 {[%clk 0:00:49]} 29. Qxb7 {[%clk 0:01:24]}  h4 {[%clk 0:00:48]} 30. Qb2+ {[%clk 0:01:23]}  Kh7 {[%clk 0:00:45]} 31. Qf6 {[%clk 0:01:21]}  h3 {[%clk 0:00:43]} 32. Qf3 {[%clk 0:01:16]}  Re1 {[%clk 0:00:27]} 33. Qxd5 {[%clk 0:01:08]}  Rxf1+ {[%clk 0:00:27]} 34. Kxf1 {[%clk 0:01:09]}  cxd5 {[%clk 0:00:28]} 35. Ke2 {[%clk 0:01:10]}  Kg7 {[%clk 0:00:28]} 36. Kd3 {[%clk 0:01:11]}  Kf6 {[%clk 0:00:29]} 37. Kd4 {[%clk 0:01:11]}  Ke6 {[%clk 0:00:29]} 38. f4 {[%clk 0:01:06]}  Kd6 {[%clk 0:00:28]} 39. g4 {[%clk 0:01:06]}  f5 {[%clk 0:00:26]} 40. g5 {[%clk 0:01:05]}  Kc6 {[%clk 0:00:16]} 41. Ke5 {[%clk 0:01:05]}  Kc5 {[%clk 0:00:12]} 42. Kf6 {[%clk 0:01:06]}  d4 {[%clk 0:00:13]} 43. Kxg6 {[%clk 0:01:06]}  d3 {[%clk 0:00:13]} 44. Kf7 {[%clk 0:00:52]}  d2 {[%clk 0:00:14]} 45. g6 {[%clk 0:00:53]}  d1=Q {[%clk 0:00:14]} 46. g7 {[%clk 0:00:53]}  Qh5+ {[%clk 0:00:10]} 47. Kf8 {[%clk 0:00:52]}  Qh6 {[%clk 0:00:10]} 48. Kf7 {[%clk 0:00:52]}  Qh7 {[%clk 0:00:06]} 49. Kf8 {[%clk 0:00:52]}  Kd4 {[%clk 0:00:06]} 50. g8=Q {[%clk 0:00:51]}  Qxg8+ {[%clk 0:00:07]} 51. Kxg8 {[%clk 0:00:52]}  Ke4 {[%clk 0:00:07]} 52. Kg7 {[%clk 0:00:52]}  Kxf4 {[%clk 0:00:08]} 53. Kh6 {[%clk 0:00:53]}  Kg4 {[%clk 0:00:08]} 0-1


[Site "https://www.chess.com"]

[Event "Titled Tuesday Blitz November 08 Late 2022"]
[White "Ardila, Oscar Humberto"]
[Black "Becerra, Juan David"]
[WhiteFideId "4404742"]
[BlackFideId "4404998"]
[WhiteElo "1959"]
[BlackElo "2281"]
[Result "0-1"]
[Round "06"]
[TimeControl "180+1"]
[Date "2022.11.09"]
[WhiteClock "0:00:02"]
[BlackClock "0:00:16"]

1. d4 {[%clk 0:02:59]}  d5 {[%clk 0:03:00]} 2. c4 {[%clk 0:02:58]}  e6 {[%clk 0:02:59]} 3. Nc3 {[%clk 0:02:58]}  Nf6 {[%clk 0:02:59]} 4. Nf3 {[%clk 0:02:58]}  c6 {[%clk 0:02:59]} 5. e3 {[%clk 0:02:56]}  Nbd7 {[%clk 0:02:59]} 6. Qc2 {[%clk 0:02:55]}  Bd6 {[%clk 0:02:58]} 7. Bd3 {[%clk 0:02:55]}  dxc4 {[%clk 0:02:58]} 8. Bxc4 {[%clk 0:02:55]}  O-O {[%clk 0:02:59]} 9. O-O {[%clk 0:02:55]}  Qe7 {[%clk 0:02:58]} 10. Bd3 {[%clk 0:02:54]}  e5 {[%clk 0:02:56]} 11. Rd1 {[%clk 0:02:32]}  Re8 {[%clk 0:02:48]} 12. dxe5 {[%clk 0:02:31]}  Nxe5 {[%clk 0:02:49]} 13. Be2 {[%clk 0:02:11]}  Bg4 {[%clk 0:02:37]} 14. Nd4 {[%clk 0:01:52]}  Rad8 {[%clk 0:02:37]} 15. Bxg4 {[%clk 0:01:43]}  Nexg4 {[%clk 0:02:38]} 16. h3 {[%clk 0:01:41]}  Qe5 {[%clk 0:02:36]} 17. Nf3 {[%clk 0:01:37]}  Qh5 {[%clk 0:02:31]} 18. hxg4 {[%clk 0:01:32]}  Nxg4 {[%clk 0:02:32]} 19. Ne2 {[%clk 0:01:05]}  Bh2+ {[%clk 0:02:22]} 20. Kf1 {[%clk 0:01:05]}  Bc7 {[%clk 0:02:21]} 21. Rxd8 {[%clk 0:00:52]}  Rxd8 {[%clk 0:02:22]} 22. e4 {[%clk 0:00:19]}  Qh1+ {[%clk 0:02:04]} 23. Neg1 {[%clk 0:00:20]}  Nh2+ {[%clk 0:01:59]} 24. Ke2 {[%clk 0:00:17]}  Qxg2 {[%clk 0:01:58]} 25. Nxh2 {[%clk 0:00:16]}  Qxg1 {[%clk 0:01:41]} 26. Nf3 {[%clk 0:00:16]}  Qh1 {[%clk 0:01:41]} 27. Rb1 {[%clk 0:00:14]}  Qh5 {[%clk 0:01:36]} 28. Be3 {[%clk 0:00:14]}  a6 {[%clk 0:01:31]} 29. Rd1 {[%clk 0:00:14]}  Re8 {[%clk 0:01:31]} 30. Rd7 {[%clk 0:00:12]}  Bb8 {[%clk 0:01:16]} 31. Qb3 {[%clk 0:00:12]}  b5 {[%clk 0:01:14]} 32. Qd3 {[%clk 0:00:12]}  Qg4 {[%clk 0:00:52]} 33. Rd8 {[%clk 0:00:11]}  Qe6 {[%clk 0:00:52]} 34. Rxe8+ {[%clk 0:00:11]}  Qxe8 {[%clk 0:00:52]} 35. Qd4 {[%clk 0:00:11]}  h6 {[%clk 0:00:48]} 36. e5 {[%clk 0:00:11]}  Bc7 {[%clk 0:00:46]} 37. Qc5 {[%clk 0:00:10]}  Qe6 {[%clk 0:00:45]} 38. a3 {[%clk 0:00:09]}  h5 {[%clk 0:00:44]} 39. Nd4 {[%clk 0:00:09]}  Qg4+ {[%clk 0:00:44]} 40. Kd2 {[%clk 0:00:07]}  h4 {[%clk 0:00:39]} 41. Qxc6 {[%clk 0:00:06]}  Bxe5 {[%clk 0:00:38]} 42. Qe8+ {[%clk 0:00:06]}  Kh7 {[%clk 0:00:37]} 43. Qxe5 {[%clk 0:00:07]}  h3 {[%clk 0:00:37]} 44. Qh2 {[%clk 0:00:06]}  g5 {[%clk 0:00:35]} 45. Ne2 {[%clk 0:00:03]}  Qg2 {[%clk 0:00:33]} 46. Qg3 {[%clk 0:00:02]}  Qd5+ {[%clk 0:00:32]} 47. Ke1 {[%clk 0:00:02]}  Qh1+ {[%clk 0:00:29]} 48. Kd2 {[%clk 0:00:02]}  Qd5+ {[%clk 0:00:29]} 49. Ke1 {[%clk 0:00:03]}  Qf5 {[%clk 0:00:20]} 50. Qh2 {[%clk 0:00:02]}  g4 {[%clk 0:00:19]} 51. Ng3 {[%clk 0:00:02]}  Qb1+ {[%clk 0:00:20]} 52. Ke2 {[%clk 0:00:02]}  Qxb2+ {[%clk 0:00:20]} 53. Bd2 {[%clk 0:00:03]}  Qxa3 {[%clk 0:00:19]} 54. f3 {[%clk 0:00:03]}  Qxf3+ {[%clk 0:00:19]} 55. Ke1 {[%clk 0:00:03]}  f5 {[%clk 0:00:19]} 56. Qf2 {[%clk 0:00:03]}  Qxf2+ {[%clk 0:00:19]} 57. Kxf2 {[%clk 0:00:03]}  Kg6 {[%clk 0:00:19]} 58. Bf4 {[%clk 0:00:03]}  a5 {[%clk 0:00:19]} 59. Ke3 {[%clk 0:00:04]}  a4 {[%clk 0:00:19]} 60. Kd4 {[%clk 0:00:04]}  b4 {[%clk 0:00:19]} 61. Kc4 {[%clk 0:00:04]}  b3 {[%clk 0:00:19]} 62. Be5 {[%clk 0:00:03]}  Kg5 {[%clk 0:00:19]} 63. Ne2 {[%clk 0:00:02]}  b2 {[%clk 0:00:16]} 64. Bf4+ {[%clk 0:00:02]}  Kh4 {[%clk 0:00:16]} 65. Nc3 {[%clk 0:00:02]}  g3 {[%clk 0:00:16]} 0-1


[Site "https://www.chess.com"]

[Event "Titled Tuesday Blitz November 08 Late 2022"]
[White "Arencibia Monduy, Antonio"]
[Black "Alfaro, William"]
[WhiteFideId "3507939"]
[BlackFideId "6100457"]
[WhiteElo "2456"]
[BlackElo "2096"]
[Result "1-0"]
[Round "06"]
[TimeControl "180+1"]
[Date "2022.11.09"]
[WhiteClock "0:02:09"]
[BlackClock "0:01:17"]

1. d4 {[%clk 0:02:58]}  Nf6 {[%clk 0:02:59]} 2. Bf4 {[%clk 0:02:58]}  d6 {[%clk 0:02:59]} 3. e3 {[%clk 0:02:56]}  g6 {[%clk 0:02:58]} 4. Nf3 {[%clk 0:02:55]}  Bg7 {[%clk 0:02:42]} 5. h3 {[%clk 0:02:55]}  O-O {[%clk 0:02:42]} 6. Be2 {[%clk 0:02:55]}  b6 {[%clk 0:02:33]} 7. O-O {[%clk 0:02:56]}  Bb7 {[%clk 0:02:33]} 8. Nbd2 {[%clk 0:02:54]}  c5 {[%clk 0:02:32]} 9. c3 {[%clk 0:02:55]}  Nbd7 {[%clk 0:02:32]} 10. Bh2 {[%clk 0:02:54]}  a6 {[%clk 0:02:26]} 11. Re1 {[%clk 0:02:51]}  b5 {[%clk 0:02:26]} 12. Bd3 {[%clk 0:02:50]}  Qb6 {[%clk 0:02:24]} 13. e4 {[%clk 0:02:50]}  e5 {[%clk 0:02:20]} 14. dxe5 {[%clk 0:02:45]}  dxe5 {[%clk 0:02:19]} 15. Nxe5 {[%clk 0:02:42]}  Nxe5 {[%clk 0:02:19]} 16. Bxe5 {[%clk 0:02:42]}  Rfe8 {[%clk 0:02:18]} 17. Bh2 {[%clk 0:02:40]}  Rad8 {[%clk 0:02:17]} 18. Qc2 {[%clk 0:02:26]}  Bh6 {[%clk 0:02:16]} 19. Rad1 {[%clk 0:02:22]}  c4 {[%clk 0:02:14]} 20. Bf1 {[%clk 0:02:22]}  Nxe4 {[%clk 0:01:34]} 21. Nxe4 {[%clk 0:02:10]}  Bxe4 {[%clk 0:01:17]} 22. Rxd8 {[%clk 0:02:09]} 1-0


[Site "https://www.chess.com"]

[Event "Titled Tuesday Blitz November 08 Late 2022"]
[White "Ashiku, Franc"]
[Black "Myers, Dominique"]
[WhiteFideId "4700066"]
[BlackFideId "2041715"]
[WhiteElo "2306"]
[BlackElo "1986"]
[Result "1-0"]
[Round "06"]
[TimeControl "180+1"]
[Date "2022.11.09"]
[WhiteClock "0:00:30"]
[BlackClock "0:00:40"]

1. d4 {[%clk 0:03:00]}  Nf6 {[%clk 0:02:59]} 2. c4 {[%clk 0:03:00]}  e6 {[%clk 0:02:59]} 3. g3 {[%clk 0:03:00]}  Bb4+ {[%clk 0:02:59]} 4. Bd2 {[%clk 0:03:00]}  Bxd2+ {[%clk 0:02:58]} 5. Qxd2 {[%clk 0:03:00]}  d5 {[%clk 0:02:57]} 6. Bg2 {[%clk 0:03:00]}  O-O {[%clk 0:02:57]} 7. Nf3 {[%clk 0:03:00]}  b6 {[%clk 0:02:57]} 8. O-O {[%clk 0:02:57]}  Bb7 {[%clk 0:02:56]} 9. Rc1 {[%clk 0:02:52]}  Nbd7 {[%clk 0:02:54]} 10. Ne5 {[%clk 0:02:50]}  Nxe5 {[%clk 0:02:48]} 11. dxe5 {[%clk 0:02:50]}  Ne4 {[%clk 0:02:47]} 12. Qe3 {[%clk 0:02:45]}  c5 {[%clk 0:02:40]} 13. f3 {[%clk 0:02:12]}  d4 {[%clk 0:02:21]} 14. Qf4 {[%clk 0:02:09]}  g5 {[%clk 0:02:00]} 15. Qg4 {[%clk 0:02:06]}  f5 {[%clk 0:02:00]} 16. Qh5 {[%clk 0:01:56]}  d3 {[%clk 0:01:45]} 17. fxe4 {[%clk 0:01:52]}  Qd4+ {[%clk 0:01:43]} 18. Kh1 {[%clk 0:01:39]}  Qxb2 {[%clk 0:01:43]} 19. Qxg5+ {[%clk 0:01:25]}  Kh8 {[%clk 0:01:42]} 20. Qd2 {[%clk 0:01:11]}  Qxa1 {[%clk 0:01:20]} 21. Nc3 {[%clk 0:01:11]}  Qxc1+ {[%clk 0:01:20]} 22. Qxc1 {[%clk 0:01:12]}  Rad8 {[%clk 0:01:15]} 23. exd3 {[%clk 0:01:08]}  Rxd3 {[%clk 0:01:14]} 24. Nd5 {[%clk 0:00:53]}  exd5 {[%clk 0:01:02]} 25. exd5 {[%clk 0:00:49]}  f4 {[%clk 0:00:57]} 26. gxf4 {[%clk 0:00:45]}  Rd4 {[%clk 0:00:57]} 27. e6 {[%clk 0:00:43]}  Rfxf4 {[%clk 0:00:44]} 28. e7 {[%clk 0:00:42]}  Rfe4 {[%clk 0:00:43]} 29. Bxe4 {[%clk 0:00:37]}  Rxe4 {[%clk 0:00:43]} 30. Qh6 {[%clk 0:00:30]}  Rxe7 {[%clk 0:00:40]} 31. Qf8# {[%clk 0:00:30]} 1-0


[Site "https://www.chess.com"]

[Event "Titled Tuesday Blitz November 08 Late 2022"]
[White "Aung Thant Zin"]
[Black "Aguilar, Juan"]
[WhiteFideId "13000063"]
[BlackFideId "3800091"]
[WhiteElo "2278"]
[BlackElo "2419"]
[Result "0-1"]
[Round "06"]
[TimeControl "180+1"]
[Date "2022.11.09"]
[WhiteClock "0:00:16"]
[BlackClock "0:00:07"]

1. c4 {[%clk 0:02:55]}  e5 {[%clk 0:02:59]} 2. Nc3 {[%clk 0:02:52]}  Nf6 {[%clk 0:02:59]} 3. Nf3 {[%clk 0:02:50]}  Nc6 {[%clk 0:03:00]} 4. e3 {[%clk 0:02:50]}  Bb4 {[%clk 0:03:00]} 5. Qc2 {[%clk 0:02:49]}  Bxc3 {[%clk 0:03:00]} 6. Qxc3 {[%clk 0:02:48]}  d6 {[%clk 0:03:00]} 7. b4 {[%clk 0:02:47]}  O-O {[%clk 0:02:57]} 8. b5 {[%clk 0:02:46]}  Ne7 {[%clk 0:02:56]} 9. d3 {[%clk 0:02:44]}  Ng6 {[%clk 0:02:48]} 10. Be2 {[%clk 0:02:44]}  Re8 {[%clk 0:02:43]} 11. O-O {[%clk 0:02:44]}  c6 {[%clk 0:02:44]} 12. a4 {[%clk 0:02:42]}  d5 {[%clk 0:02:43]} 13. Bb2 {[%clk 0:02:36]}  Bg4 {[%clk 0:02:37]} 14. Rfe1 {[%clk 0:02:27]}  d4 {[%clk 0:02:19]} 15. exd4 {[%clk 0:02:22]}  exd4 {[%clk 0:02:11]} 16. Nxd4 {[%clk 0:02:21]}  Bxe2 {[%clk 0:02:05]} 17. Rxe2 {[%clk 0:02:21]}  Nf4 {[%clk 0:01:56]} 18. Rxe8+ {[%clk 0:02:11]}  Qxe8 {[%clk 0:01:56]} 19. Qd2 {[%clk 0:02:04]}  Qe5 {[%clk 0:01:40]} 20. Nf3 {[%clk 0:01:30]}  Qf5 {[%clk 0:01:39]} 21. Bxf6 {[%clk 0:01:08]}  gxf6 {[%clk 0:01:33]} 22. Rd1 {[%clk 0:00:55]}  Qg4 {[%clk 0:01:12]} 23. Ne1 {[%clk 0:00:50]}  Re8 {[%clk 0:01:09]} 24. f3 {[%clk 0:00:43]}  Qg5 {[%clk 0:00:54]} 25. g3 {[%clk 0:00:22]}  Ne2+ {[%clk 0:00:36]} 26. Kg2 {[%clk 0:00:19]}  Qc5 {[%clk 0:00:29]} 27. d4 {[%clk 0:00:15]}  Qxc4 {[%clk 0:00:26]} 28. bxc6 {[%clk 0:00:14]}  bxc6 {[%clk 0:00:18]} 29. Nc2 {[%clk 0:00:14]}  Nc3 {[%clk 0:00:12]} 30. Re1 {[%clk 0:00:13]}  Rxe1 {[%clk 0:00:09]} 31. Qxe1 {[%clk 0:00:14]}  Qd3 {[%clk 0:00:08]} 32. Qf2 {[%clk 0:00:13]}  Nd5 {[%clk 0:00:07]} 33. f4 {[%clk 0:00:11]}  Qxc2 {[%clk 0:00:06]} 34. Qxc2 {[%clk 0:00:09]}  Ne3+ {[%clk 0:00:07]} 35. Kf3 {[%clk 0:00:10]}  Nxc2 {[%clk 0:00:07]} 36. Kg4 {[%clk 0:00:10]}  Nxd4 {[%clk 0:00:07]} 37. f5 {[%clk 0:00:10]}  Kf8 {[%clk 0:00:06]} 38. Kf4 {[%clk 0:00:11]}  Ke7 {[%clk 0:00:06]} 39. Ke4 {[%clk 0:00:12]}  Nb3 {[%clk 0:00:06]} 40. Kf4 {[%clk 0:00:09]}  Kd6 {[%clk 0:00:05]} 41. g4 {[%clk 0:00:10]}  c5 {[%clk 0:00:06]} 42. h4 {[%clk 0:00:10]}  Kd5 {[%clk 0:00:04]} 43. g5 {[%clk 0:00:11]}  fxg5+ {[%clk 0:00:04]} 44. Kxg5 {[%clk 0:00:12]}  c4 {[%clk 0:00:04]} 45. Kh6 {[%clk 0:00:11]}  c3 {[%clk 0:00:02]} 46. Kxh7 {[%clk 0:00:12]}  c2 {[%clk 0:00:02]} 47. Kg7 {[%clk 0:00:13]}  c1=Q {[%clk 0:00:03]} 48. h5 {[%clk 0:00:14]}  Qg5+ {[%clk 0:00:03]} 49. Kxf7 {[%clk 0:00:13]}  Qxf5+ {[%clk 0:00:03]} 50. Kg7 {[%clk 0:00:14]}  Qxh5 {[%clk 0:00:03]} 51. Kf6 {[%clk 0:00:14]}  Qe2 {[%clk 0:00:04]} 52. a5 {[%clk 0:00:13]}  Nc5 {[%clk 0:00:05]} 53. a6 {[%clk 0:00:14]}  Nxa6 {[%clk 0:00:06]} 54. Kf7 {[%clk 0:00:15]}  Nc5 {[%clk 0:00:06]} 55. Kf8 {[%clk 0:00:16]}  a5 {[%clk 0:00:07]} 0-1


[Site "https://www.chess.com"]